[Event "*** Titled Tuesday Blitz"]
[Site "Chess.com"]
[Date "2021.03.30"]
[Round "2"]
[White "Airquake"]
[Black "anasta10"]
[Result "0-1"]
[WhiteElo "2663"]
[BlackElo "2495"]
[TimeControl "180+1"]
[EndTime "10:18:50 PDT"]
[Termination "anasta10 won on time"]

1. e4 {[%clk 0:03:00.9]} 1... e6 {[%clk 0:02:57.7]} 2. d4 {[%clk 0:02:59.7]}
2... d5 {[%clk 0:02:58.6]} 3. Nd2 {[%clk 0:02:58.4]} 3... c5 {[%clk 0:02:57.8]}
4. exd5 {[%clk 0:02:58.2]} 4... Qxd5 {[%clk 0:02:58.7]} 5. Ngf3 {[%clk
0:02:58.3]} 5... Nf6 {[%clk 0:02:58]} 6. Bc4 {[%clk 0:02:56.9]} 6... Qd8 {[%clk
0:02:58.2]} 7. O-O {[%clk 0:02:55.6]} 7... Nc6 {[%clk 0:02:58.2]} 8. dxc5 {[%clk
0:02:53.9]} 8... Bxc5 {[%clk 0:02:59.1]} 9. c3 {[%clk 0:02:52.9]} 9... O-O
{[%clk 0:02:58.8]} 10. Qe2 {[%clk 0:02:52]} 10... h6 {[%clk 0:02:57.8]} 11. Ne4
{[%clk 0:02:50.8]} 11... Be7 {[%clk 0:02:50]} 12. Rd1 {[%clk 0:02:47.9]} 12...
Qc7 {[%clk 0:02:48.2]} 13. Bd3 {[%clk 0:02:39.1]} 13... Rd8 {[%clk 0:02:42.4]}
14. Nxf6+ {[%clk 0:02:38.7]} 14... Bxf6 {[%clk 0:02:43.3]} 15. Qe4 {[%clk
0:02:38.6]} 15... e5 {[%clk 0:02:05]} 16. b3 {[%clk 0:02:02.6]} 16... g6 {[%clk
0:01:58.2]} 17. Bxh6 {[%clk 0:02:01]} 17... Bf5 {[%clk 0:01:57.4]} 18. Qe3
{[%clk 0:01:24.1]} 18... Rxd3 {[%clk 0:01:55.2]} 19. Rxd3 {[%clk 0:01:25]} 19...
e4 {[%clk 0:01:47]} 20. Bf4 {[%clk 0:00:47.5]} 20... Qe7 {[%clk 0:01:22]} 21.
Nd4 {[%clk 0:00:29.1]} 21... exd3 {[%clk 0:01:05.3]} 22. Nxf5 {[%clk 0:00:28.8]}
22... gxf5 {[%clk 0:01:06.2]} 23. Qxd3 {[%clk 0:00:29.1]} 23... Bg7 {[%clk
0:00:37.7]} 24. h3 {[%clk 0:00:25.4]} 24... Qf6 {[%clk 0:00:35]} 25. Rc1 {[%clk
0:00:23.5]} 25... Re8 {[%clk 0:00:30]} 26. Qg3 {[%clk 0:00:21.3]} 26... Re4
{[%clk 0:00:27.8]} 27. c4 {[%clk 0:00:19.9]} 27... Qg6 {[%clk 0:00:27.7]} 28.
Qf3 {[%clk 0:00:19.1]} 28... Rxf4 {[%clk 0:00:24.1]} 29. Qxf4 {[%clk 0:00:18.8]}
29... Bh6 {[%clk 0:00:24.8]} 30. Qc7 {[%clk 0:00:11.6]} 30... Bxc1 {[%clk
0:00:25.2]} 31. Qxb7 {[%clk 0:00:12.1]} 31... Bf4 {[%clk 0:00:20.6]} 32. b4
{[%clk 0:00:10.4]} 32... Qe6 {[%clk 0:00:19.6]} 33. g3 {[%clk 0:00:09.9]} 33...
Bg5 {[%clk 0:00:18.1]} 34. b5 {[%clk 0:00:04.4]} 34... Nd4 {[%clk 0:00:17]} 35.
c5 {[%clk 0:00:03.3]} 35... Qe1+ {[%clk 0:00:14.9]} 36. Kg2 {[%clk 0:00:03.8]}
36... Qe4+ {[%clk 0:00:14.4]} 37. Qxe4 {[%clk 0:00:03.8]} 37... fxe4 {[%clk
0:00:15.3]} 38. c6 {[%clk 0:00:03.1]} 38... Bd8 {[%clk 0:00:15.3]} 39. g4 {[%clk
0:00:01.9]} 39... Bc7 {[%clk 0:00:15.1]} 40. Kf1 {[%clk 0:00:02.2]} 40... Kg7
{[%clk 0:00:15.4]} 41. Ke1 {[%clk 0:00:02.9]} 41... Kf6 {[%clk 0:00:15.8]} 42.
Kd2 {[%clk 0:00:03.8]} 42... Ke5 {[%clk 0:00:16.4]} 43. Kc3 {[%clk 0:00:04.3]}
43... Ba5+ {[%clk 0:00:14.2]} 44. Kc4 {[%clk 0:00:04.1]} 44... Ne6 {[%clk
0:00:13.2]} 45. h4 {[%clk 0:00:04.4]} 45... Kf4 {[%clk 0:00:13.2]} 46. h5 {[%clk
0:00:04.9]} 46... Kg5 {[%clk 0:00:11.8]} 47. Kd5 {[%clk 0:00:05.1]} 47... Bb6
{[%clk 0:00:10.5]} 48. Kxe4 {[%clk 0:00:05.4]} 48... Bxf2 {[%clk 0:00:10.7]} 49.
Kd5 {[%clk 0:00:05.8]} 49... Bb6 {[%clk 0:00:10.2]} 50. Kd6 {[%clk 0:00:05.6]}
50... Nf4 {[%clk 0:00:09.6]} 51. Ke7 {[%clk 0:00:04.2]} 51... f6 {[%clk
0:00:09.5]} 52. Kf7 {[%clk 0:00:03.3]} 52... Nd5 {[%clk 0:00:07.3]} 53. Kg7
{[%clk 0:00:03.7]} 53... Bd4 {[%clk 0:00:07]} 54. Kf7 {[%clk 0:00:02.5]} 54...
Be5 {[%clk 0:00:06.2]} 55. Ke6 {[%clk 0:00:02.8]} 55... Nc7+ {[%clk 0:00:06]}
56. Kd7 {[%clk 0:00:03.3]} 56... Nxb5 {[%clk 0:00:06.9]} 57. a4 {[%clk
0:00:02.8]} 57... Nc3 {[%clk 0:00:06.5]} 58. c7 {[%clk 0:00:02.6]} 58... Bxc7
{[%clk 0:00:06.2]} 59. Kxc7 {[%clk 0:00:02.3]} 59... Nxa4 {[%clk 0:00:06.9]} 60.
Kd6 {[%clk 0:00:02.8]} 60... Nc3 {[%clk 0:00:06.7]} 61. Ke6 {[%clk 0:00:03.2]}
61... a5 {[%clk 0:00:07]} 62. Kf7 {[%clk 0:00:03.7]} 62... a4 {[%clk 0:00:07]}
63. Kg7 {[%clk 0:00:04.2]} 63... a3 {[%clk 0:00:06.4]} 64. h6 {[%clk 0:00:05.1]}
64... a2 {[%clk 0:00:06.9]} 65. h7 {[%clk 0:00:06]} 65... a1=Q {[%clk
0:00:07.2]} 66. h8=Q {[%clk 0:00:06.9]} 66... Qa7+ {[%clk 0:00:07.6]} 67. Kg8
{[%clk 0:00:07.5]} 67... Qa8+ {[%clk 0:00:08]} 68. Kh7 {[%clk 0:00:08]} 68...
Qxh8+ {[%clk 0:00:08.8]} 0-1

[Event "*** Titled Tuesday Blitz"]
[Site "Chess.com"]
[Date "2021.03.30"]
[Round "2"]
[White "BursaBBSatranc"]
[Black "malakismayil"]
[Result "1-0"]
[WhiteElo "2606"]
[BlackElo "2324"]
[TimeControl "180+1"]
[EndTime "10:18:52 PDT"]
[Termination "BursaBBSatranc won on time"]

1. d4 {[%clk 0:03:00.9]} 1... Nf6 {[%clk 0:02:59.2]} 2. Nf3 {[%clk 0:03:01]}
2... e6 {[%clk 0:02:59.4]} 3. Bf4 {[%clk 0:03:01]} 3... d5 {[%clk 0:02:58.8]} 4.
e3 {[%clk 0:03:00.9]} 4... c5 {[%clk 0:02:57]} 5. c3 {[%clk 0:02:57.7]} 5... Be7
{[%clk 0:02:52.6]} 6. Nbd2 {[%clk 0:02:56.8]} 6... O-O {[%clk 0:02:48.8]} 7. Bd3
{[%clk 0:02:56.9]} 7... a6 {[%clk 0:02:14.7]} 8. Qe2 {[%clk 0:02:53.3]} 8...
Nbd7 {[%clk 0:02:10.3]} 9. h4 {[%clk 0:02:48.9]} 9... b5 {[%clk 0:02:02.4]} 10.
g4 {[%clk 0:02:48.7]} 10... Bb7 {[%clk 0:01:55.6]} 11. g5 {[%clk 0:02:43.3]}
11... Ne4 {[%clk 0:01:51.4]} 12. Ne5 {[%clk 0:02:24.7]} 12... Nxe5 {[%clk
0:01:32.9]} 13. Bxe5 {[%clk 0:02:24.8]} 13... f6 {[%clk 0:01:24.6]} 14. gxf6
{[%clk 0:01:23.1]} 14... Bxf6 {[%clk 0:01:25.5]} 15. Bf4 {[%clk 0:01:22.3]}
15... cxd4 {[%clk 0:01:10.7]} 16. cxd4 {[%clk 0:01:17.3]} 16... Bxd4 {[%clk
0:01:05.9]} 17. Nxe4 {[%clk 0:00:53]} 17... dxe4 {[%clk 0:01:04.2]} 18. Bb1
{[%clk 0:00:24.7]} 18... Qa5+ {[%clk 0:00:53.9]} 19. Kf1 {[%clk 0:00:24.7]}
19... Bd5 {[%clk 0:00:48.1]} 20. Kg2 {[%clk 0:00:22.6]} 20... Bf6 {[%clk
0:00:43.3]} 21. a4 {[%clk 0:00:18.5]} 21... Rf7 {[%clk 0:00:31.7]} 22. Ba2
{[%clk 0:00:18.6]} 22... b4 {[%clk 0:00:28.6]} 23. Rhd1 {[%clk 0:00:15.5]} 23...
Raf8 {[%clk 0:00:25.7]} 24. Bxd5 {[%clk 0:00:13.2]} 24... exd5 {[%clk
0:00:26.6]} 25. Rac1 {[%clk 0:00:10.3]} 25... Bxh4 {[%clk 0:00:25]} 26. Qg4
{[%clk 0:00:09.5]} 26... Bf6 {[%clk 0:00:24.7]} 27. Qe6 {[%clk 0:00:09.4]} 27...
Qd8 {[%clk 0:00:16.5]} 28. Rxd5 {[%clk 0:00:08.7]} 28... Qe8 {[%clk 0:00:17]}
29. Qxe8 {[%clk 0:00:07.4]} 29... Rxe8 {[%clk 0:00:17.9]} 30. b3 {[%clk
0:00:08]} 30... h6 {[%clk 0:00:17.6]} 31. Rc6 {[%clk 0:00:07.5]} 31... g5 {[%clk
0:00:18]} 32. Bg3 {[%clk 0:00:07.4]} 32... Bc3 {[%clk 0:00:18.5]} 33. Rxh6
{[%clk 0:00:06.3]} 33... Rg7 {[%clk 0:00:18.7]} 34. Rxa6 {[%clk 0:00:05.4]}
34... Rf8 {[%clk 0:00:18.9]} 35. Raa5 {[%clk 0:00:05.6]} 35... g4 {[%clk
0:00:18.8]} 36. Rg5 {[%clk 0:00:05.5]} 36... Kh7 {[%clk 0:00:17.6]} 37. Rh5+
{[%clk 0:00:05.4]} 37... Kg8 {[%clk 0:00:16.9]} 38. Rag5 {[%clk 0:00:06.3]}
38... Rf7 {[%clk 0:00:16.8]} 39. a5 {[%clk 0:00:06.3]} 39... Ra7 {[%clk
0:00:15.9]} 40. Bb8 {[%clk 0:00:05.5]} 40... Rb7 {[%clk 0:00:14.2]} 41. Bd6
{[%clk 0:00:04.5]} 41... Bf6 {[%clk 0:00:14.4]} 42. Rxg7+ {[%clk 0:00:04]} 42...
Kxg7 {[%clk 0:00:15.3]} 43. Bc5 {[%clk 0:00:02.3]} 43... Rc7 {[%clk 0:00:15.1]}
44. Bb6 {[%clk 0:00:02.1]} 44... Rb7 {[%clk 0:00:14.6]} 45. Rd5 {[%clk 0:00:02]}
45... Kg6 {[%clk 0:00:14.9]} 46. Kg3 {[%clk 0:00:02.3]} 46... Be7 {[%clk
0:00:12.2]} 47. Kxg4 {[%clk 0:00:02.8]} 47... Bf6 {[%clk 0:00:12.2]} 48. Kf4
{[%clk 0:00:03.3]} 48... Kf7 {[%clk 0:00:11.2]} 49. Kxe4 {[%clk 0:00:03.6]}
49... Re7+ {[%clk 0:00:12.1]} 50. Kd3 {[%clk 0:00:03.9]} 50... Rb7 {[%clk
0:00:12.4]} 51. e4 {[%clk 0:00:04.4]} 51... Bc3 {[%clk 0:00:12.3]} 52. Kc4
{[%clk 0:00:05.3]} 52... Ke6 {[%clk 0:00:12.6]} 53. Kb5 {[%clk 0:00:06.2]} 53...
Rb8 {[%clk 0:00:12.6]} 54. f4 {[%clk 0:00:07.1]} 54... Rc8 {[%clk 0:00:12.6]}
55. f5+ {[%clk 0:00:08]} 55... Kf6 {[%clk 0:00:12.3]} 56. a6 {[%clk 0:00:08.9]}
56... Be5 {[%clk 0:00:10.6]} 57. a7 {[%clk 0:00:08.5]} 57... Re8 {[%clk
0:00:11]} 58. Kc6 {[%clk 0:00:08.5]} 58... Bf4 {[%clk 0:00:10.1]} 59. Rd7 {[%clk
0:00:09]} 59... Rxe4 {[%clk 0:00:09]} 60. a8=Q {[%clk 0:00:09]} 60... Re2 {[%clk
0:00:09.6]} 61. Kb5 {[%clk 0:00:09.2]} 61... Kxf5 {[%clk 0:00:10.5]} 62. Qd5+
{[%clk 0:00:09.1]} 62... Kg4 {[%clk 0:00:10.2]} 63. Qd3 {[%clk 0:00:10]} 63...
Rg2 {[%clk 0:00:08.9]} 64. Rd5 {[%clk 0:00:10.5]} 64... Rg3 {[%clk 0:00:08.2]}
65. Qg6+ {[%clk 0:00:10.5]} 65... Kf3 {[%clk 0:00:08.3]} 66. Qh5+ {[%clk
0:00:10.8]} 66... Kg2 {[%clk 0:00:07.7]} 67. Qe2+ {[%clk 0:00:09.8]} 1-0

[Event "*** Titled Tuesday Blitz"]
[Site "Chess.com"]
[Date "2021.03.30"]
[Round "2"]
[White "Sam_ChessMood"]
[Black "Keks2017"]
[Result "1/2-1/2"]
[WhiteElo "2859"]
[BlackElo "2469"]
[TimeControl "180+1"]
[EndTime "10:19:10 PDT"]
[Termination "Game drawn by repetition"]

1. Nf3 {[%clk 0:03:00.9]} 1... Nf6 {[%clk 0:02:59.1]} 2. g3 {[%clk 0:03:00.5]}
2... g6 {[%clk 0:02:59]} 3. Bg2 {[%clk 0:03:00.8]} 3... Bg7 {[%clk 0:02:59.1]}
4. O-O {[%clk 0:03:01.1]} 4... O-O {[%clk 0:02:59.1]} 5. c4 {[%clk 0:03:01.5]}
5... d6 {[%clk 0:02:58.9]} 6. d4 {[%clk 0:03:01.5]} 6... Nbd7 {[%clk 0:02:58.1]}
7. Nc3 {[%clk 0:03:01.3]} 7... e5 {[%clk 0:02:58]} 8. Qc2 {[%clk 0:03:01]} 8...
Re8 {[%clk 0:02:57.2]} 9. Rd1 {[%clk 0:02:54.2]} 9... c6 {[%clk 0:02:52.9]} 10.
h3 {[%clk 0:02:42.6]} 10... Qc7 {[%clk 0:02:42.6]} 11. b3 {[%clk 0:02:42.4]}
11... a6 {[%clk 0:02:42.4]} 12. e3 {[%clk 0:02:37.5]} 12... e4 {[%clk
0:02:31.9]} 13. Nd2 {[%clk 0:02:35.1]} 13... d5 {[%clk 0:02:31.6]} 14. Ba3
{[%clk 0:02:34.1]} 14... b5 {[%clk 0:02:26.8]} 15. Rac1 {[%clk 0:02:30.2]} 15...
Qb8 {[%clk 0:02:26.6]} 16. cxd5 {[%clk 0:02:17.4]} 16... cxd5 {[%clk 0:02:25.3]}
17. Ne2 {[%clk 0:02:17.4]} 17... Bf8 {[%clk 0:02:10]} 18. Bxf8 {[%clk
0:02:16.4]} 18... Nxf8 {[%clk 0:02:08.7]} 19. Qc7 {[%clk 0:01:56.5]} 19... Qxc7
{[%clk 0:02:01.9]} 20. Rxc7 {[%clk 0:01:57.4]} 20... Ne6 {[%clk 0:02:01.8]} 21.
Rc2 {[%clk 0:01:57.4]} 21... Bb7 {[%clk 0:01:57.8]} 22. Rdc1 {[%clk 0:01:57.3]}
22... Rac8 {[%clk 0:01:55.4]} 23. b4 {[%clk 0:01:56.7]} 23... Rxc2 {[%clk
0:01:49.7]} 24. Rxc2 {[%clk 0:01:57.6]} 24... Rc8 {[%clk 0:01:49.5]} 25. Rxc8+
{[%clk 0:01:57.8]} 25... Bxc8 {[%clk 0:01:49.4]} 26. Nb3 {[%clk 0:01:58.1]}
26... Kf8 {[%clk 0:01:46.5]} 27. Nc5 {[%clk 0:01:54]} 27... Nc7 {[%clk
0:01:45.1]} 28. Nc3 {[%clk 0:01:50.6]} 28... Ke7 {[%clk 0:01:43.9]} 29. g4
{[%clk 0:01:46.7]} 29... h6 {[%clk 0:01:41.4]} 30. f3 {[%clk 0:01:46.9]} 30...
exf3 {[%clk 0:01:40.7]} 31. Bxf3 {[%clk 0:01:47.8]} 31... Kd6 {[%clk 0:01:40.2]}
32. Kf2 {[%clk 0:01:47.8]} 32... Ne6 {[%clk 0:01:30.3]} 33. Kg3 {[%clk
0:01:46.7]} 33... Nd8 {[%clk 0:01:24.3]} 34. a3 {[%clk 0:01:42]} 34... Nc6
{[%clk 0:01:23.4]} 35. Nd3 {[%clk 0:01:36.7]} 35... g5 {[%clk 0:01:19.3]} 36.
Nc5 {[%clk 0:01:35.2]} 36... Ne7 {[%clk 0:01:12.4]} 37. e4 {[%clk 0:01:29]}
37... dxe4 {[%clk 0:01:11.5]} 38. N3xe4+ {[%clk 0:01:28]} 38... Nxe4+ {[%clk
0:01:11.3]} 39. Nxe4+ {[%clk 0:01:25.3]} 39... Ke6 {[%clk 0:01:01.6]} 40. Nc5+
{[%clk 0:01:20.3]} 40... Kd6 {[%clk 0:01:01]} 41. Be4 {[%clk 0:01:07]} 41... Nd5
{[%clk 0:00:48.8]} 42. Nd3 {[%clk 0:00:58.8]} 42... Nc3 {[%clk 0:00:35.1]} 43.
Bf3 {[%clk 0:00:58.8]} 43... Nb1 {[%clk 0:00:32.6]} 44. Ne5 {[%clk 0:00:55]}
44... f6 {[%clk 0:00:24.3]} 45. Nf7+ {[%clk 0:00:54.4]} 45... Ke7 {[%clk
0:00:24.1]} 46. Nxh6 {[%clk 0:00:54.5]} 46... Nxa3 {[%clk 0:00:24]} 47. Be4
{[%clk 0:00:47]} 47... Nc4 {[%clk 0:00:20.4]} 48. Kf2 {[%clk 0:00:45.8]} 48...
a5 {[%clk 0:00:20.5]} 49. bxa5 {[%clk 0:00:45.1]} 49... Nxa5 {[%clk 0:00:20.6]}
50. Ng8+ {[%clk 0:00:40.3]} 50... Kf7 {[%clk 0:00:20]} 51. Bd5+ {[%clk
0:00:40.6]} 51... Kg7 {[%clk 0:00:19.6]} 52. Ne7 {[%clk 0:00:40.4]} 52... Bd7
{[%clk 0:00:20.1]} 53. Ke3 {[%clk 0:00:35.8]} 53... Kf8 {[%clk 0:00:20.1]} 54.
Nf5 {[%clk 0:00:35.7]} 54... Bxf5 {[%clk 0:00:19.9]} 55. gxf5 {[%clk 0:00:36.6]}
55... Ke7 {[%clk 0:00:20]} 56. Kd3 {[%clk 0:00:28.2]} 56... Kd6 {[%clk
0:00:20.1]} 57. Bf7 {[%clk 0:00:24.5]} 57... Nc6 {[%clk 0:00:19.7]} 58. Be8
{[%clk 0:00:24.7]} 58... Ne7 {[%clk 0:00:19.4]} 59. Bxb5 {[%clk 0:00:20.8]}
59... Nxf5 {[%clk 0:00:19.3]} 60. Ke4 {[%clk 0:00:21.3]} 60... Ne7 {[%clk
0:00:19.3]} 61. Bc4 {[%clk 0:00:18.5]} 61... f5+ {[%clk 0:00:19.4]} 62. Kf3
{[%clk 0:00:18]} 62... Nc6 {[%clk 0:00:18.8]} 63. Ke3 {[%clk 0:00:18.4]} 63...
Ne7 {[%clk 0:00:18]} 64. Bb3 {[%clk 0:00:17.6]} 64... Nd5+ {[%clk 0:00:18]} 65.
Kf3 {[%clk 0:00:17.8]} 65... Nf6 {[%clk 0:00:16.8]} 66. Bc2 {[%clk 0:00:17.3]}
66... Ke6 {[%clk 0:00:16.9]} 67. Bb3+ {[%clk 0:00:17.3]} 67... Kd6 {[%clk
0:00:17.1]} 68. Bf7 {[%clk 0:00:16.9]} 68... Nd7 {[%clk 0:00:14.9]} 69. Bc4
{[%clk 0:00:15.9]} 69... Nf6 {[%clk 0:00:14.4]} 70. Ke3 {[%clk 0:00:15.6]} 70...
Nd5+ {[%clk 0:00:13.8]} 71. Kf3 {[%clk 0:00:15.5]} 71... Nf6 {[%clk 0:00:13.7]}
72. Ba2 {[%clk 0:00:14.6]} 72... Nd5 {[%clk 0:00:13.4]} 73. Bb1 {[%clk
0:00:13.3]} 73... Ke6 {[%clk 0:00:12.9]} 74. Bc2 {[%clk 0:00:11.4]} 74... Kf6
{[%clk 0:00:12.7]} 75. Bb3 {[%clk 0:00:11.1]} 75... Ne7 {[%clk 0:00:12.6]} 76.
Ke3 {[%clk 0:00:09.7]} 76... Ng6 {[%clk 0:00:11.5]} 77. Kf3 {[%clk 0:00:09.9]}
77... Ne7 {[%clk 0:00:11]} 78. Ke3 {[%clk 0:00:09.6]} 78... Ng6 {[%clk
0:00:11.1]} 79. Kf3 {[%clk 0:00:09.6]} 79... Ne7 {[%clk 0:00:11.2]} 1/2-1/2

[Event "*** Titled Tuesday Blitz"]
[Site "Chess.com"]
[Date "2021.03.30"]
[Round "2"]
[White "MarkoPe"]
[Black "Mikhal867"]
[Result "1/2-1/2"]
[WhiteElo "2194"]
[BlackElo "2412"]
[TimeControl "180+1"]
[EndTime "10:19:12 PDT"]
[Termination "Game drawn - insufficient material"]

1. e4 {[%clk 0:02:57.4]} 1... g6 {[%clk 0:02:58.2]} 2. d4 {[%clk 0:02:57.5]}
2... Bg7 {[%clk 0:02:57.6]} 3. Be3 {[%clk 0:02:56.6]} 3... d6 {[%clk 0:02:57.4]}
4. Qd2 {[%clk 0:02:56]} 4... a6 {[%clk 0:02:54.9]} 5. a4 {[%clk 0:02:55.3]} 5...
b6 {[%clk 0:02:54.3]} 6. Bd3 {[%clk 0:02:54.2]} 6... Nc6 {[%clk 0:02:53.4]} 7.
Ne2 {[%clk 0:02:53.8]} 7... Nf6 {[%clk 0:02:50.4]} 8. f3 {[%clk 0:02:53.2]} 8...
Bb7 {[%clk 0:02:43.6]} 9. Nbc3 {[%clk 0:02:53.2]} 9... Nb4 {[%clk 0:02:42.5]}
10. O-O {[%clk 0:02:50.3]} 10... O-O {[%clk 0:02:41.5]} 11. Kh1 {[%clk
0:02:48.7]} 11... c5 {[%clk 0:02:37.1]} 12. d5 {[%clk 0:02:37.3]} 12... Nd7
{[%clk 0:02:29.2]} 13. Bh6 {[%clk 0:02:23.8]} 13... Ne5 {[%clk 0:02:11.4]} 14.
Bxg7 {[%clk 0:02:23]} 14... Kxg7 {[%clk 0:02:11.1]} 15. f4 {[%clk 0:02:23.5]}
15... Nexd3 {[%clk 0:02:08.3]} 16. cxd3 {[%clk 0:02:24.4]} 16... b5 {[%clk
0:02:00.7]} 17. axb5 {[%clk 0:02:23.5]} 17... axb5 {[%clk 0:02:00.6]} 18. Rxa8
{[%clk 0:02:00.8]} 18... Qxa8 {[%clk 0:01:59.2]} 19. Nxb5 {[%clk 0:02:00.1]}
19... Qa5 {[%clk 0:01:45.8]} 20. Nbc3 {[%clk 0:01:58.2]} 20... Ba6 {[%clk
0:01:44.9]} 21. d4 {[%clk 0:01:53.7]} 21... Rb8 {[%clk 0:01:34.1]} 22. dxc5
{[%clk 0:01:49.4]} 22... Qxc5 {[%clk 0:01:34]} 23. Rc1 {[%clk 0:01:42.7]} 23...
Nd3 {[%clk 0:01:31.9]} 24. Rc2 {[%clk 0:01:37.5]} 24... Nf2+ {[%clk 0:01:31.4]}
25. Kg1 {[%clk 0:01:37.7]} 25... Nxe4+ {[%clk 0:01:10.6]} 26. Qd4+ {[%clk
0:01:36.8]} 26... Qxd4+ {[%clk 0:01:09]} 27. Nxd4 {[%clk 0:01:37.7]} 27... Nxc3
{[%clk 0:01:01.9]} 28. bxc3 {[%clk 0:01:37.6]} 28... Rb1+ {[%clk 0:01:01]} 29.
Kf2 {[%clk 0:01:37.8]} 29... Bc4 {[%clk 0:01:00.3]} 30. Nc6 {[%clk 0:01:37]}
30... Kf6 {[%clk 0:00:56.4]} 31. Nb4 {[%clk 0:01:37.2]} 31... Rd1 {[%clk
0:00:52.7]} 32. g4 {[%clk 0:01:23.4]} 32... Bxd5 {[%clk 0:00:47.4]} 33. Ke2
{[%clk 0:01:23.7]} 33... Rh1 {[%clk 0:00:33.4]} 34. Nxd5+ {[%clk 0:01:23]} 34...
Ke6 {[%clk 0:00:33.7]} 35. Ne3 {[%clk 0:01:20.6]} 35... Rxh2+ {[%clk 0:00:33.3]}
36. Kf3 {[%clk 0:01:17.4]} 36... Rh3+ {[%clk 0:00:32.9]} 37. Ke4 {[%clk
0:01:17.4]} 37... h5 {[%clk 0:00:31.4]} 38. f5+ {[%clk 0:01:15.7]} 38... gxf5+
{[%clk 0:00:30.1]} 39. gxf5+ {[%clk 0:01:16.6]} 39... Kd7 {[%clk 0:00:28]} 40.
Ra2 {[%clk 0:01:08.9]} 40... Rh4+ {[%clk 0:00:23.4]} 41. Kd3 {[%clk 0:01:05.7]}
41... e6 {[%clk 0:00:16.9]} 42. Ra7+ {[%clk 0:01:04.8]} 42... Ke8 {[%clk
0:00:17.3]} 43. c4 {[%clk 0:00:49.6]} 43... Rf4 {[%clk 0:00:16.4]} 44. fxe6
{[%clk 0:00:45.5]} 44... fxe6 {[%clk 0:00:16]} 45. Rh7 {[%clk 0:00:46.4]} 45...
h4 {[%clk 0:00:15.8]} 46. Ng2 {[%clk 0:00:36]} 46... Rf3+ {[%clk 0:00:15.4]} 47.
Ke4 {[%clk 0:00:36.2]} 47... Rg3 {[%clk 0:00:14.7]} 48. Nxh4 {[%clk 0:00:35.4]}
48... d5+ {[%clk 0:00:14.3]} 49. cxd5 {[%clk 0:00:34.1]} 49... exd5+ {[%clk
0:00:14.5]} 50. Kxd5 {[%clk 0:00:35]} 50... Rd3+ {[%clk 0:00:14.2]} 51. Ke6
{[%clk 0:00:31.8]} 51... Re3+ {[%clk 0:00:14.2]} 52. Kf5 {[%clk 0:00:31.3]}
52... Rh3 {[%clk 0:00:13.6]} 53. Kf6 {[%clk 0:00:30.8]} 53... Kd8 {[%clk
0:00:13.5]} 54. Ke6 {[%clk 0:00:23.9]} 54... Kc8 {[%clk 0:00:13.6]} 55. Rh5
{[%clk 0:00:21.1]} 55... Kc7 {[%clk 0:00:12.9]} 56. Rc5+ {[%clk 0:00:20]} 56...
Kb6 {[%clk 0:00:12.9]} 57. Rc4 {[%clk 0:00:20.7]} 57... Re3+ {[%clk 0:00:12.4]}
58. Kd5 {[%clk 0:00:19.8]} 58... Rd3+ {[%clk 0:00:12.5]} 59. Ke4 {[%clk
0:00:20]} 59... Rh3 {[%clk 0:00:12.3]} 60. Nf5 {[%clk 0:00:20.3]} 60... Rh1
{[%clk 0:00:12.4]} 61. Ne3 {[%clk 0:00:19.3]} 61... Rh4+ {[%clk 0:00:11.8]} 62.
Kd3 {[%clk 0:00:17.2]} 62... Rh8 {[%clk 0:00:11.7]} 63. Nd5+ {[%clk 0:00:17]}
63... Kb5 {[%clk 0:00:11.4]} 64. Nc3+ {[%clk 0:00:17.5]} 64... Kb6 {[%clk
0:00:11.4]} 65. Ne4 {[%clk 0:00:17.3]} 65... Kb5 {[%clk 0:00:11.4]} 66. Nd6+
{[%clk 0:00:17.1]} 66... Ka5 {[%clk 0:00:10.9]} 67. Kc3 {[%clk 0:00:14.1]} 67...
Kb6 {[%clk 0:00:11.2]} 68. Kb4 {[%clk 0:00:13.7]} 68... Ka7 {[%clk 0:00:10.8]}
69. Ne4 {[%clk 0:00:12.7]} 69... Kb6 {[%clk 0:00:10]} 70. Nc5 {[%clk 0:00:12.7]}
70... Kc6 {[%clk 0:00:09.8]} 71. Ne6+ {[%clk 0:00:12.2]} 71... Kd5 {[%clk
0:00:10]} 72. Nf4+ {[%clk 0:00:12.8]} 72... Ke5 {[%clk 0:00:09.8]} 73. Kc5
{[%clk 0:00:13.7]} 73... Rc8+ {[%clk 0:00:09]} 74. Kb4 {[%clk 0:00:13.5]} 74...
Rxc4+ {[%clk 0:00:08.9]} 75. Kxc4 {[%clk 0:00:14.4]} 1/2-1/2